Workbook

Sheet ORÇAMENTO
B1: PLANILHA ORÇAMENTÁRIA
B2: PAVIMENTAÇÃO EM BLOCO SEXTAVADO (TRECHO COLUNA) - FASE 2
B3: SÃO JOÃO DA MATA - MINAS GERAIS
B4: SUB-ITEM | C4: REFERÊNCIA | D4: CÓDIGO | F4: SERVIÇO | G4: UNID | H4: QTDE | I4: PREÇO UNITÁRIO | J4: PREÇO COM BDI 21,78% | K4: PREÇO DO SERVIÇO
B5: 1. | C5: PRELIMINARES
B6: 1.1 | C6: INSTALAÇÃO PLACA DE OBRA
B7: 1.1.1 | C7: COMPOSIÇÃO | D7: COMP-OBR-001 | E7: - | F7: FORNECIMENTO E INSTALAÇÃO DE PLACA DE OBRA PARA CONSTRUÇÃO CIVIL EM CHAPA DE AÇO GALVANIZADA 2,00 X 1,125 M | G7: M2 | H7: 2.25 | I7: 587.39 | J7: =I7*21.78%+I7 -> 715.323542 | K7: =H7*J7 -> 1609.477969
B8: 1.2 | C8: INSTALAÇÃO CANTEIRO DE OBRAS
B9: 1.2.1 | C9: SINAPI - DEZ / 22 | D9: 93208 | E9: - | F9: EXECUÇÃO DE ALMOXARIFADO EM CANTEIRO DE OBRA EM CHAPA DE MADEIRA COMPENSADA, INCLUSO PRATELEIRAS. AF_02/2016 | G9: M2 | H9: 7.5 | I9: 1069.8 | J9: =I9*21.78%+I9 -> 1302.80244 | K9: =H9*J9 -> 9771.0183
B10: 2. | C10: TERRAPLENAGEM E LOCAÇÃO DE OBRA
B11: 2.1 | C11: TERRAPLENAGEM
B12: 2.1.1 | C12: SINAPI - DEZ / 22 | D12: 98525 | E12: - | F12: LIMPEZA MECANIZADA DE CAMADA VEGETAL, VEGETAÇÃO E PEQUENAS ÁRVORES (DIÂMETRO DE TRONCO MENOR QUE 0,20 M), COM TRATOR DE ESTEIRAS.AF_05/2018 | G12: M2 | H12: 911.9 | I12: 0.37 | J12: =I12*21.78%+I12 -> 0.450586 | K12: =H12*J12 -> 410.8893734
B13: OBSERVAÇÃO: OS ITENS 2.1.2 E 2.1.3 REFEREM-SE, RESPECTIVAMENTE, À ESCAVAÇÃO PARA REAPROVEITAMENTO NA PISTA E PARA DESCARTE
B14: 2.1.2 | C14: SETOP - OUT/22 | D14: RO-40150 | E14: - | F14: ESCAVAÇÃO, CARGA, DESCARGA, ESPALHAMENTO E TRANSPORTE DE MATERIAL DE 1ª CATEGORIA, COM CAMINHÃO. DISTÂNCIA MÉDIA DE TRANSPORTE DE 401 A 600 M | G14: M3 | H14: 91.22 | I14: 6.79 | J14: =I14*21.78%+I14 -> 8.268862 | K14: =H14*J14 -> 754.2855916
B15: 2.1.3 | C15: SETOP - OUT/21 | D15: RO-40158 | E15: - | F15: ESCAVAÇÃO, CARGA, DESCARGA, ESPALHAMENTO E TRANSPORTE DE MATERIAL DE 1ª CATEGORIA, COM CAMINHÃO. DISTÂNCIA MÉDIA DE TRANSPORTE DE 2.001 A 2.500 M | G15: M3 | H15: 252.66 | I15: 10.27 | J15: =I15*21.78%+I15 -> 12.506806 | K15: =H15*J15 -> 3159.969604
B16: 2.1.4 | C16: SINAPI - DEZ / 22 | D16: 96385 | E16: - | F16: EXECUÇÃO E COMPACTAÇÃO DE ATERRO COM SOLO PREDOMINANTEMENTE ARGILOSO - EXCLUSIVE SOLO, ESCAVAÇÃO, CARGA E TRANSPORTE. AF_11/2019 | G16: M3 | H16: 91.22 | I16: 10.26 | J16: =I16*21.78%+I16 -> 12.494628 | K16: =H16*J16 -> 1139.759966
B17: 2.2 | C17: LOCAÇÃO DA OBRA
B18: 2.2.1 | C18: SINAPI - DEZ / 22 | D18: 99064 | E18: - | F18: LOCAÇÃO DE PAVIMENTAÇÃO. AF_10/2018 | G18: M | H18: 353.28 | I18: 0.59 | J18: =I18*21.78%+I18 -> 0.718502 | K18: =H18*J18 -> 253.8323866
B19: 3. | C19: PAVIMENTAÇÃO
B20: 3.1 | C20: PAVIMENTO, SARJETA E GUIA
B21: 3.1.1 | C21: SETOP - OUT/21 | D21: RO-41082 | E21: OBR-VIA-130 | F21: REGULARIZAÇÃO DO SUB-LEITO (PROCTOR INTERMEDIÁRIO) | G21: M2 | H21: 2106.375 | I21: 1.24 | J21: =I21*21.78%+I21 -> 1.510072 | K21: =H21*J21 -> 3180.777909
B22: OBSERVAÇÃO: OS ITENS 3.1.2 E 3.1.3 REFEREM-SE AO TRANSPORTE DA AREIA
B23: 3.1.2 | C23: SINAPI - DEZ / 22 | D23: 95875 | E23: - | F23: TRANSPORTE COM CAMINHÃO BASCULANTE DE 10 M³, EM VIA URBANA PAVIMENTADA, DMT ATÉ 30 KM (UNIDADE: M3XKM). AF_07/2020 | G23: M3XKM | H23: 3159.6 | I23: 2.23 | J23: =I23*21.78%+I23 -> 2.715694 | K23: =H23*J23 -> 8580.506762
B24: 3.1.3 | C24: SINAPI - DEZ / 22 | D24: 93590 | E24: - | F24: TRANSPORTE COM CAMINHÃO BASCULANTE DE 10 M³, EM VIA URBANA PAVIMENTADA, ADICIONAL PARA DMT EXCEDENTE A 30 KM (UNIDADE: M3XKM). AF_07/2020 | G24: M3XKM | H24: 1625.0876 | I24: 0.88 | J24: =I24*21.78%+I24 -> 1.071664 | K24: =H24*J24 -> 1741.547878
B25: OBSERVAÇÃO: OS ITENS 3.1.4 E 3.1.5 REFEREM-SE AO TRANSPORTE DOS BLOCOS SEXTAVADOS
B26: 3.1.4 | C26: SINAPI - DEZ / 22 | D26: 95875 | E26: - | F26: TRANSPORTE COM CAMINHÃO BASCULANTE DE 10 M³, EM VIA URBANA PAVIMENTADA, DMT ATÉ 30 KM (UNIDADE: M3XKM). AF_07/2020 | G26: M3XKM | H26: 5055.3 | I26: 2.23 | J26: =I26*21.78%+I26 -> 2.715694 | K26: =H26*J26 -> 13728.64788
B27: 3.1.5 | C27: SINAPI - DEZ / 22 | D27: 93590 | E27: - | F27: TRANSPORTE COM CAMINHÃO BASCULANTE DE 10 M³, EM VIA URBANA PAVIMENTADA, ADICIONAL PARA DMT EXCEDENTE A 30 KM (UNIDADE: M3XKM). AF_07/2020 | G27: M3XKM | H27: 1651.398 | I27: 0.88 | J27: 1.071664 | K27: 1769.743786
B28: 3.1.6 | C28: SINAPI - DEZ / 22 | D28: 92394 | E28: - | F28: EXECUÇÃO DE PAVIMENTO EM PISO INTERTRAVADO, COM BLOCO SEXTAVADO DE 25 X 25 CM, ESPESSURA 8 CM. AF_12/2015 | G28: M2 | H28: 2106.375 | I28: 69.38 | J28: 84.490964 | K28: 177969.6543
B29: 3.1.7 | C29: SINAPI - DEZ / 22 | D29: 94287 | E29: - | F29: EXECUÇÃO DE SARJETA DE CONCRETO USINADO, MOLDADA IN LOCO EM TRECHO RETO, 30 CM BASE X 10 CM ALTURA. AF_06/2016 | G29: M | H29: 350.56 | I29: 44.69 | J29: 54.423482 | K29: 19078.69585
B30: 3.1.8 | C30: SINAPI - DEZ / 22 | D30: 94288 | E30: - | F30: EXECUÇÃO DE SARJETA DE CONCRETO USINADO, MOLDADA IN LOCO EM TRECHO CURVO, 30 CM BASE X 10 CM ALTURA. AF_06/2016 | G30: M | H30: 295 | I30: 54.2 | J30: 66.00476 | K30: 19471.4042
B31: 3.1.9 | C31: SINAPI - DEZ / 22 | D31: 94273 | E31: - | F31: ASSENTAMENTO DE GUIA (MEIO-FIO) EM TRECHO RETO, CONFECCIONADA EM CONCRETO PRÉ-FABRICADO, DIMENSÕES 100X15X13X30 CM (COMPRIMENTO X BASE INFERIOR X BASE SUPERIOR X ALTURA), PARA VIAS URBANAS (USO VIÁRIO). AF_06/2016 | G31: M | H31: 350.56 | I31: 68.32 | J31: 83.200096 | K31: 29166.62565
B33: 3. | C33: PAVIMENTAÇÃO (CONTINUAÇÃO)
B34: 3.1 | C34: PAVIMENTO, SARJETA E GUIA (CONTINUAÇÃO)
B35: 3.1.10 | C35: SINAPI - DEZ / 22 | D35: 94274 | E35: - | F35: ASSENTAMENTO DE GUIA (MEIO-FIO) EM TRECHO CURVO, CONFECCIONADA EM CONCRETO PRÉ-FABRICADO, DIMENSÕES 100X15X13X30 CM (COMPRIMENTO X BASE INFERIOR X BASE SUPERIOR X ALTURA), PARA VIAS URBANAS (USO VIÁRIO). AF_06/2016 | G35: M | H35: 295 | I35: 71.91 | J35: =I35*21.78%+I35 -> 87.571998 | K35: =H35*J35 -> 25833.73941
B36: OBSERVAÇÃO: O ITEM 3.1.11 REFERE-SE ÀS VIGAS DE CONTENÇÃO LATERAL
B37: 3.1.11 | C37: SINAPI - DEZ / 22 | D37: 94265 | E37: - | F37: GUIA (MEIO-FIO) CONCRETO, MOLDADA IN LOCO EM TRECHO RETO COM EXTRUSORA, 15 CM BASE X 30 CM ALTURA. AF_06/2016 | G37: M | H37: 6 | I37: 46.24 | J37: =I37*21.78%+I37 -> 56.311072 | K37: =H37*J37 -> 337.866432
B38: 3.1.12 | C38: COMPOSIÇÃO | D38: COMP-DRE-001 | E38: - | F38: EXECUÇÃO DE SARJETÃO DE CONCRETO ARMADO MOLDADO IN LOCO, 45 CM BASE x 10CM ALTURA | G38: M | H38: 49 | I38: 84 | J38: =I38*21.78%+I38 -> 102.2952 | K38: =H38*J38 -> 5012.4648
B39: 3.1.13 | C39: SINAPI - DEZ / 22 | D39: 94991 | E39: - | F39: EXECUÇÃO DE PASSEIO (CALÇADA) OU PISO DE CONCRETO COM CONCRETO MOLDADO IN LOCO, USINADO, ACABAMENTO CONVENCIONAL, NÃO ARMADO. AF_07/2016 | G39: M3 | H39: 8.145 | I39: 801.61 | J39: =I39*21.78%+I39 -> 976.200658 | K39: =H39*J39 -> 7951.154359
B40: 3.1.14 | C40: SINAPI - DEZ / 22 | D40: 94992 | E40: - | F40: EXECUÇÃO DE PASSEIO (CALÇADA) OU PISO DE CONCRETO COM CONCRETO MOLDADO IN LOCO, FEITO EM OBRA, ACABAMENTO CONVENCIONAL, ESPESSURA 6 CM, ARMADO. AF_07/2016 | G40: M2 | H40: 14.25 | I40: 86.68 | J40: =I40*21.78%+I40 -> 105.558904 | K40: =H40*J40 -> 1504.214382
B41: 4. | C41: ABASTECIMENTO DE ÁGUA POTÁVEL
B42: 4.1 | C42: INSTALAÇÃO DE TUBULAÇÃO
B43: 4.1.1 | C43: SINAPI - DEZ / 22 | D43: 101266 | E43: - | F43: ESCAVAÇÃO VERTICAL A CÉU ABERTO, EM OBRAS DE INFRAESTRUTURA, INCLUINDO CARGA, DESCARGA E TRANSPORTE, EM SOLO DE 1ª CATEGORIA COM ESCAVADEIRA HIDRÁULICA (CAÇAMBA: 0,8 M³ / 111HP), FROTA DE 3 CAMINHÕES BASCULANTES DE 10 M³, DMT ATÉ 1 KM E VELOCIDADE MÉDIA14KM/H. AF_05/2020 | G43: M3 | H43: 316.91 | I43: 10.52 | J43: =I43*21.78%+I43 -> 12.811256 | K43: =H43*J43 -> 4060.015139
B44: 4.1.2 | C44: SINAPI - DEZ / 22 | D44: 101619 | E44: - | F44: PREPARO DE FUNDO DE VALA COM LARGURA MENOR QUE 1,5 M, COM CAMADA DE BRITA, LANÇAMENTO MANUAL. AF_08/2020 | G44: M3 | H44: 7.92 | I44: 266.86 | J44: =I44*21.78%+I44 -> 324.982108 | K44: =H44*J44 -> 2573.858295
B45: 4.1.3 | C45: COMPOSIÇÃO | D45: COMP-RFA-001 | E45: - | F45: INSTALAÇÃO DE TUBULAÇÃO DE ABASTECIMENTO DE ÁGUA POTÁVEL | G45: U | H45: 1 | I45: 9858.64 | J45: =I45*21.78%+I45 -> 12005.85179 | K45: =H45*J45 -> 12005.85179
B46: 4.1.4 | C46: SINAPI - DEZ / 22 | D46: 93360 | E46: - | F46: REATERRO MECANIZADO DE VALA COM ESCAVADEIRA HIDRÁULICA (CAPACIDADE DA CAÇAMBA: 0,8 M³ / POTÊNCIA: 111 HP), LARGURA DE 1,5 A 2,5 M, PROFUNDIDADE ATÉ 1,5 M, COM SOLO DE 1ª CATEGORIA EM LOCAIS COM ALTO NÍVEL DE INTERFERÊNCIA. AF_04/2016 | G46: M3 | H46: 316.91 | I46: 21.65 | J46: =I46*21.78%+I46 -> 26.36537 | K46: =H46*J46 -> 8355.449407
B47: 5. | C47: DRENAGEM PLUVIAL
B48: 5.1 | C48: REDE TUBULAR
B49: 5.1.1 | C49: SINAPI - DEZ / 22 | D49: 101266 | E49: - | F49: ESCAVAÇÃO VERTICAL A CÉU ABERTO, EM OBRAS DE INFRAESTRUTURA, INCLUINDO CARGA, DESCARGA E TRANSPORTE, EM SOLO DE 1ª CATEGORIA COM ESCAVADEIRA HIDRÁULICA (CAÇAMBA: 0,8 M³ / 111HP), FROTA DE 3 CAMINHÕES BASCULANTES DE 10 M³, DMT ATÉ 1 KM E VELOCIDADE MÉDIA14KM/H. AF_05/2020 | G49: M3 | H49: 8.28 | I49: 10.52 | J49: =I49*21.78%+I49 -> 12.811256 | K49: =H49*J49 -> 106.0771997
B50: 5.1.2 | C50: SINAPI - DEZ / 22 | D50: 101619 | E50: - | F50: PREPARO DE FUNDO DE VALA COM LARGURA MENOR QUE 1,5 M, COM CAMADA DE BRITA, LANÇAMENTO MANUAL. AF_08/2020 | G50: M3 | H50: 1.72 | I50: 266.86 | J50: =I50*21.78%+I50 -> 324.982108 | K50: =H50*J50 -> 558.9692258
B51: 5.1.3 | C51: SINAPI - DEZ / 22 | D51: 95568 | E51: - | F51: TUBO DE CONCRETO (SIMPLES) PARA REDES COLETORAS DE ÁGUAS PLUVIAIS, DIÂMETRO DE 400 MM, JUNTA RÍGIDA, INSTALADO EM LOCAL COM BAIXO NÍVEL DE INTERFERÊNCIAS - FORNECIMENTO E ASSENTAMENTO. AF_12/2015 | G51: M | H51: 13.8 | I51: 142.53 | J51: =I51*21.78%+I51 -> 173.573034 | K51: =H51*J51 -> 2395.307869
B52: 5.1.4 | C52: SINAPI - DEZ / 22 | D52: 93367 | E52: - | F52: REATERRO MECANIZADO DE VALA COM ESCAVADEIRA HIDRÁULICA (CAPACIDADE DA CAÇAMBA: 0,8 M³ / POTÊNCIA: 111 HP), LARGURA DE 1,5 A 2,5 M, PROFUNDIDADE ATÉ 1,5 M, COM SOLO DE 1ª CATEGORIA EM LOCAIS COM BAIXO NÍVEL DE INTERFERÊNCIA. AF_04/2016 | G52: M3 | H52: 4.83 | I52: 20.19 | J52: =I52*21.78%+I52 -> 24.587382 | K52: =H52*J52 -> 118.7570551
B53: 5.2 | C53: BOCAS DE LOBO
B54: 5.2.1 | C54: SICRO - JUL/21 | D54: 2003453 | E54: - | F54: DISSIPADOR DE ENERGIA - DEB 03 - AREIA, BRITA E PEDRA DE MÃO COMERCIAIS | G54: U | H54: 2 | I54: 1032.5 | J54: =I54*21.78%+I54 -> 1257.3785 | K54: =H54*J54 -> 2514.757
B55: 5.2.2 | C55: SETOP - OUT/21 | D55: ED-48549 | E55: DRE-BOC-005 | F55: BOCA DE LOBO SIMPLES (TIPO A - FERRO FUNDIDO), QUADRO, GRELHA E CANTONEIRA, INCLUSIVE ESCAVAÇÃO, REATERRO E BOTA-FORA | G55: U | H55: 4 | I55: 2546.96 | J55: =I55*21.78%+I55 -> 3101.687888 | K55: =H55*J55 -> 12406.75155
B57: 6. | C57: SINALIZAÇÃO VIÁRIA
B58: 6.1 | C58: SINALIZAÇÃO HORIZONTAL
B59: 6.1.1 | C59: SETOP - OUT/21 | D59: RO-41237 | E59: OBR-VIA-245 | F59: LINHAS DE RESINA ACRILICA DE 0,6MM DE ESPESSURA E LARGURA = 0,10M (EXECUÇÃO, INCLUINDO PRÉ-MARCAÇÃO, FORNECIMENTO E TRANSPORTE DE TODOS OS MATERIAIS) | G59: M | H59: 353.28 | I59: 2.65 | J59: =I59*21.78%+I59 -> 3.22717 | K59: =H59*J59 -> 1140.094618
B60: 6.2 | C60: SINALIZAÇÃO VERTICAL
B61: 6.2.1 | C61: SETOP - OUT/21 | D61: RO-41841 | E61: - | F61: PLACA DE AÇO CARBONO COM PELÍCULA REFLETIVA GRAU TÉCNICO TIPO I DA ABNT - PLACA CIRCULAR (EXECUÇÃO, INCLUINDO FORNECIMENTO E TRANSPORTE DE TODOS OS MATERIAIS, INCLUSIVE POSTE DE SUSTENTAÇÃO) | G61: M2 | H61: 0.3926990817 | I61: 470.34 | J61: =I61*21.78%+I61 -> 572.780052 | K61: =H61*J61 -> 224.9302004
B62: 6.2.2 | C62: SETOP - OUT/21 | D62: RO-41844 | E62: - | F62: PLACA DE AÇO CARBONO COM PELÍCULA REFLETIVA GRAU TÉCNICO TIPO I DA ABNT - PLACA QUADRADA (EXECUÇÃO, INCLUINDO FORNECIMENTO E TRANSPORTE DE TODOS OS MATERIAIS, INCLUSIVE POSTE DE SUSTENTAÇÃO) | G62: M2 | H62: 0.405 | I62: 456.75 | J62: =I62*21.78%+I62 -> 556.23015 | K62: =H62*J62 -> 225.2732108
B63: 6.2.3 | C63: COMPOSIÇÃO | D63: COMP-SIN-001 | E63: - | F63: EXECUÇÃO DE BASE DE CONCRETO SIMPLES PARA FIXAÇÃO DAS HASTES DE SINALIZAÇÃO | G63: U | H63: 2 | I63: 60.58 | J63: =I63*21.78%+I63 -> 73.774324 | K63: =H63*J63 -> 147.548648
B65: TOTAL COM BDI: | K65: =K7+K9+K12+K14+K15+K16+K18+K21+K23+K24+K26+K27+K28+K29+K30+K31+K35+K37+K38+K39+K40+K43+K44+K45+K46+K49+K50+K51+K52+K54+K55+K59+K61+K62+K63 -> 379259.918

Sheet MÉMORIA DE CÁLCULO
B1: MEMÓRIA DE CÁLCULO - QUANTITATIVOS
B2: PAVIMENTAÇÃO EM BLOCO SEXTAVADO (TRECHO COLUNA) - FASE 2
B3: SÃO JOÃO DA MATA - MINAS GERAIS
B4: SUB-ITEM | C4: REFERÊNCIA | D4: CÓDIGO | F4: SERVIÇO | G4: UNID | H4: QTDE | I4: MEMORIAL DE CÁLCULO
B5: 1. | C5: PRELIMINARES
B6: 1.1 | C6: INSTALAÇÃO PLACA DE OBRA
B7: 1.1.1 | C7: COMPOSIÇÃO | D7: COMP-OBR-001 | E7: - | F7: FORNECIMENTO E INSTALAÇÃO DE PLACA DE OBRA PARA CONSTRUÇÃO CIVIL EM CHAPA DE AÇO GALVANIZADA 2,00 X 1,125 M | G7: M2 | H7: 2.25 | I7: 1 unidade de 2,00 x 1,125 = 2,25 m²
B8: 1.2 | C8: INSTALAÇÃO CANTEIRO DE OBRAS
B9: 1.2.1 | C9: SINAPI - NOV/21 | D9: 93208 | E9: - | F9: EXECUÇÃO DE ALMOXARIFADO EM CANTEIRO DE OBRA EM CHAPA DE MADEIRA COMPENSADA, INCLUSO PRATELEIRAS. AF_02/2016 | G9: M2 | H9: 7.5 | I9: 2,5m (comprimento) x 3,0m (largura) = 7,50m²
B10: 2. | C10: TERRAPLENAGEM E LOCAÇÃO DE OBRA
B11: 2.1 | C11: TERRAPLENAGEM
B12: 2.1.1 | C12: SINAPI - NOV/21 | D12: 98525 | E12: - | F12: LIMPEZA MECANIZADA DE CAMADA VEGETAL, VEGETAÇÃO E PEQUENAS ÁRVORES (DIÂMETRO DE TRONCO MENOR QUE 0,20 M), COM TRATOR DE ESTEIRAS.AF_05/2018 | G12: M2 | H12: 911.9 | I12: Considerada a área de projeção da via projetada menos a área existente, portanto: 2462,16 - 1550,26 = 911,90M2
B13: OBSERVAÇÃO: OS ITENS 2.1.2 E 2.1.3 REFEREM-SE, RESPECTIVAMENTE, À ESCAVAÇÃO PARA REAPROVEITAMENTO NA PISTA E PARA DESCARTE
B14: 2.1.2 | C14: SETOP - OUT/21 | D14: RO-40150 | E14: - | F14: ESCAVAÇÃO, CARGA, DESCARGA, ESPALHAMENTO E TRANSPORTE DE MATERIAL DE 1ª CATEGORIA, COM CAMINHÃO. DISTÂNCIA MÉDIA DE TRANSPORTE DE 401 A 600 M | G14: M3 | H14: 91.22 | I14: Volume de aterro= 91,22 M3(ver seções)
B15: 2.1.3 | C15: SETOP - OUT/21 | D15: RO-40158 | E15: - | F15: ESCAVAÇÃO, CARGA, DESCARGA, ESPALHAMENTO E TRANSPORTE DE MATERIAL DE 1ª CATEGORIA, COM CAMINHÃO. DISTÂNCIA MÉDIA DE TRANSPORTE DE 2.001 A 2.500 M | G15: M3 | H15: 252.66 | I15: Volume de corte= 252,66 M3(ver seções)
B16: 2.1.4 | C16: SINAPI - NOV/21 | D16: 96385 | E16: - | F16: EXECUÇÃO E COMPACTAÇÃO DE ATERRO COM SOLO PREDOMINANTEMENTE ARGILOSO - EXCLUSIVE SOLO, ESCAVAÇÃO, CARGA E TRANSPORTE. AF_11/2019 | G16: M3 | H16: 91.22 | I16: Volume de aterro= 91,22 M3(ver seções)
B17: 2.2 | C17: LOCAÇÃO DA OBRA
B18: 2.2.1 | C18: SINAPI - NOV/21 | D18: 99064 | E18: - | F18: LOCAÇÃO DE PAVIMENTAÇÃO. AF_10/2018 | G18: M | H18: 353.28 | I18: Extensão da via = 353,28 M
B19: 3. | C19: PAVIMENTAÇÃO
B20: 3.1 | C20: PAVIMENTO, SARJETA E GUIA
B21: 3.1.1 | C21: SETOP - OUT/21 | D21: RO-41082 | E21: OBR-VIA-130 | F21: REGULARIZAÇÃO DO SUB-LEITO (PROCTOR INTERMEDIÁRIO) | G21: M2 | H21: 2106.38 | I21: Área de blocos sextavados:168,51 (Volume de bloco sextavado) / 0,08 (espessura do bloco) = 2106,38 M2
B22: OBSERVAÇÃO: OS ITENS 3.1.2 E 3.1.3 REFEREM-SE AO TRANSPORTE DA AREIA
B23: 3.1.2 | C23: SINAPI - NOV/21 | D23: 95875 | E23: - | F23: TRANSPORTE COM CAMINHÃO BASCULANTE DE 10 M³, EM VIA URBANA PAVIMENTADA, DMT ATÉ 30 KM (UNIDADE: M3XKM). AF_07/2020 | G23: M3XKM | H23: 3159.6 | I23: 105,32 (Volume de areia) x 30Km= 3159,6 M3XKM
B24: 3.1.3 | C24: SINAPI - NOV/21 | D24: 93590 | E24: - | F24: TRANSPORTE COM CAMINHÃO BASCULANTE DE 10 M³, EM VIA URBANA PAVIMENTADA, ADICIONAL PARA DMT EXCEDENTE A 30 KM (UNIDADE: M3XKM). AF_07/2020 | G24: M3XKM | H24: 1625.09 | I24: 105,32 (Volume de areia) x (45,43 - 30Km) =1625,09 M3XKM
B25: OBSERVAÇÃO: OS ITENS 3.1.4 E 3.1.5 REFEREM-SE AO TRANSPORTE DOS BLOCOS SEXTAVADOS
B26: 3.1.4 | C26: SINAPI - NOV/21 | D26: 95875 | E26: - | F26: TRANSPORTE COM CAMINHÃO BASCULANTE DE 10 M³, EM VIA URBANA PAVIMENTADA, DMT ATÉ 30 KM (UNIDADE: M3XKM). AF_07/2020 | G26: M3XKM | H26: 5055.3 | I26: 168,51 (Volume de blocos) x 30Km =5055,3 M3XKM
B27: 3.1.5 | C27: SINAPI - NOV/21 | D27: 93590 | E27: - | F27: TRANSPORTE COM CAMINHÃO BASCULANTE DE 10 M³, EM VIA URBANA PAVIMENTADA, ADICIONAL PARA DMT EXCEDENTE A 30 KM (UNIDADE: M3XKM). AF_07/2020 | G27: M3XKM | H27: 1651.4 | I27: 168,51 (Volume de blocos) x (39,8 - 30Km) =1651,4 M3XKM
B28: 3.1.6 | C28: SINAPI - NOV/21 | D28: 92394 | E28: - | F28: EXECUÇÃO DE PAVIMENTO EM PISO INTERTRAVADO, COM BLOCO SEXTAVADO DE 25 X 25 CM, ESPESSURA 8 CM. AF_12/2015 | G28: M2 | H28: 2106.38 | I28: Área de blocos sextavados:168,51 (Volume de bloco sextavado) / 0,08 (espessura do bloco) = 2106,38 M2
B29: 3.1.7 | C29: SINAPI - NOV/21 | D29: 94287 | E29: - | F29: EXECUÇÃO DE SARJETA DE CONCRETO USINADO, MOLDADA IN LOCO EM TRECHO RETO, 30 CM BASE X 10 CM ALTURA. AF_06/2016 | G29: M | H29: 350.56 | I29: Somatória das sarjetas executadas em trecho reto, conforme projeto = 350,56 M
B30: 3.1.8 | C30: SINAPI - NOV/21 | D30: 94288 | E30: - | F30: EXECUÇÃO DE SARJETA DE CONCRETO USINADO, MOLDADA IN LOCO EM TRECHO CURVO, 30 CM BASE X 10 CM ALTURA. AF_06/2016 | G30: M | H30: 295 | I30: Somatória das sarjetas executadas em trecho curvo, conforme projeto = 295 M
B31: 3.1.9 | C31: SINAPI - NOV/21 | D31: 94273 | E31: - | F31: ASSENTAMENTO DE GUIA (MEIO-FIO) EM TRECHO RETO, CONFECCIONADA EM CONCRETO PRÉ-FABRICADO, DIMENSÕES 100X15X13X30 CM (COMPRIMENTO X BASE INFERIOR X BASE SUPERIOR X ALTURA), PARA VIAS URBANAS (USO VIÁRIO). AF_06/2016 | G31: M | H31: 350.56 | I31: Somatória das guias assentadas em trecho reto, conforme projeto = 350,56 M
B33: 3. | C33: PAVIMENTAÇÃO (CONTINUAÇÃO)
B34: 3. | C34: PAVIMENTAÇÃO (CONTINUAÇÃO)
B35: 3.1.10 | C35: SINAPI - NOV/21 | D35: 94274 | E35: - | F35: ASSENTAMENTO DE GUIA (MEIO-FIO) EM TRECHO CURVO, CONFECCIONADA EM CONCRETO PRÉ-FABRICADO, DIMENSÕES 100X15X13X30 CM (COMPRIMENTO X BASE INFERIOR X BASE SUPERIOR X ALTURA), PARA VIAS URBANAS (USO VIÁRIO). AF_06/2016 | G35: M | H35: 295 | I35: Somatória das guias assentadas em trecho cuvo, conforme projeto = 295 M
B36: OBSERVAÇÃO: O ITEM 3.1.11 REFERE-SE ÀS VIGAS DE CONTENÇÃO LATERAL
B37: 3.1.11 | C37: SINAPI - NOV/21 | D37: 94265 | E37: - | F37: GUIA (MEIO-FIO) CONCRETO, MOLDADA IN LOCO EM TRECHO RETO COM EXTRUSORA, 15 CM BASE X 30 CM ALTURA. AF_06/2016 | G37: M | H37: 6 | I37: Guias / contenção:6 M
B38: 3.1.12 | C38: COMPOSIÇÃO | D38: COMP-DRE-001 | E38: - | F38: EXECUÇÃO DE SARJETÃO DE CONCRETO ARMADO MOLDADO IN LOCO, 45 CM BASE x 10CM ALTURA | G38: M | H38: 49 | I38: Somatória de sarjetão de concreto armado, conforme projeto = 49 M
B39: 3.1.13 | C39: SINAPI - NOV/21 | D39: 94991 | E39: - | F39: EXECUÇÃO DE PASSEIO (CALÇADA) OU PISO DE CONCRETO COM CONCRETO MOLDADO IN LOCO, USINADO, ACABAMENTO CONVENCIONAL, NÃO ARMADO. AF_07/2016 | G39: M3 | H39: 8.145 | I39: Volume de calçada de concreto não armado = 8,145 M3
B40: 3.1.14 | C40: SINAPI - NOV/21 | D40: 94992 | E40: - | F40: EXECUÇÃO DE PASSEIO (CALÇADA) OU PISO DE CONCRETO COM CONCRETO MOLDADO IN LOCO, FEITO EM OBRA, ACABAMENTO CONVENCIONAL, ESPESSURA 6 CM, ARMADO. AF_07/2016 | G40: M2 | H40: 14.25 | I40: Área de calçada de concreto não armado = 14,25 M2
B41: 4. | C41: ABASTECIMENTO DE ÁGUA POTÁVEL
B42: 4.1 | C42: INSTALAÇÃO DE TUBULAÇÃO | D42: 0 | E42: 0 | F42: 0 | G42: 0 | H42: 0
B43: 4.1.1 | C43: SINAPI - NOV/21 | D43: 101266 | E43: - | F43: ESCAVAÇÃO VERTICAL A CÉU ABERTO, EM OBRAS DE INFRAESTRUTURA, INCLUINDO CARGA, DESCARGA E TRANSPORTE, EM SOLO DE 1ª CATEGORIA COM ESCAVADEIRA HIDRÁULICA (CAÇAMBA: 0,8 M³ / 111HP), FROTA DE 3 CAMINHÕES BASCULANTES DE 10 M³, DMT ATÉ 1 KM E VELOCIDADE MÉDIA14KM/H. AF_05/2020 | G43: M3 | H43: 316.91 | I43: 0,5 x 1,8 x 352,12 = 316,91M3 (volume de escavação)
B44: 4.1.2 | C44: SINAPI - NOV/21 | D44: 101619 | E44: - | F44: PREPARO DE FUNDO DE VALA COM LARGURA MENOR QUE 1,5 M, COM CAMADA DE BRITA, LANÇAMENTO MANUAL. AF_08/2020 | G44: M3 | H44: 7.92 | I44: 0,15 x 0,15 x 352,12 = 7,92M3 (volume de brita)
B45: 4.1.3 | C45: COMPOSIÇÃO | D45: COMP-RFA-001 | E45: - | F45: INSTALAÇÃO DE TUBULAÇÃO DE ABASTECIMENTO DE ÁGUA POTÁVEL | G45: U | H45: 1 | I45: Composição para instalação de 352,12m da estaca 29+10m até estaca 47+3,28 = 352,12M
B46: 4.1.4 | C46: SINAPI - NOV/21 | D46: 93360 | E46: - | F46: REATERRO MECANIZADO DE VALA COM ESCAVADEIRA HIDRÁULICA (CAPACIDADE DA CAÇAMBA: 0,8 M³ / POTÊNCIA: 111 HP), LARGURA DE 1,5 A 2,5 M, PROFUNDIDADE ATÉ 1,5 M, COM SOLO DE 1ª CATEGORIA EM LOCAIS COM ALTO NÍVEL DE INTERFERÊNCIA. AF_04/2016 | G46: M3 | H46: 316.91 | I46: 0,5 x 1,8 x 352,12 = 316,91M3 (volume de escavação)
B47: 5. | C47: DRENAGEM PLUVIAL
B48: 5.1 | C48: REDE TUBULAR
B49: 5.1.1 | C49: SINAPI - NOV/21 | D49: 101266 | E49: - | F49: ESCAVAÇÃO VERTICAL A CÉU ABERTO, EM OBRAS DE INFRAESTRUTURA, INCLUINDO CARGA, DESCARGA E TRANSPORTE, EM SOLO DE 1ª CATEGORIA COM ESCAVADEIRA HIDRÁULICA (CAÇAMBA: 0,8 M³ / 111HP), FROTA DE 3 CAMINHÕES BASCULANTES DE 10 M³, DMT ATÉ 1 KM E VELOCIDADE MÉDIA14KM/H. AF_05/2020 | G49: M3 | H49: 8.28 | I49: (0,7 + 0,5) x 0,5 = 0,6 m² (área transversal de corte) x (comprimento da rede tubular) = 8,28m³
B50: 5.1.2 | C50: SINAPI - NOV/21 | D50: 101619 | E50: - | F50: PREPARO DE FUNDO DE VALA COM LARGURA MENOR QUE 1,5 M, COM CAMADA DE BRITA, LANÇAMENTO MANUAL. AF_08/2020 | G50: M3 | H50: 1.72 | I50: 0,5 x 0,5 (área total) - (pi x 0,2 x 0,2) (área do tubo) x 6 (largura da via) x 13,8 (comprimento da rede tubular) = 1,72 M3
B51: 5.1.3 | C51: SINAPI - NOV/21 | D51: 95568 | E51: - | F51: TUBO DE CONCRETO (SIMPLES) PARA REDES COLETORAS DE ÁGUAS PLUVIAIS, DIÂMETRO DE 400 MM, JUNTA RÍGIDA, INSTALADO EM LOCAL COM BAIXO NÍVEL DE INTERFERÊNCIAS - FORNECIMENTO E ASSENTAMENTO. AF_12/2015 | G51: M | H51: 13.8 | I51: 6 m (extensão da via) + (2 x 0,45) (sarjeta + guia) x 2 (rede tubular entre bocas de lobo) = 13,8 M
B52: 5.1.4 | C52: SINAPI - NOV/21 | D52: 93367 | E52: - | F52: REATERRO MECANIZADO DE VALA COM ESCAVADEIRA HIDRÁULICA (CAPACIDADE DA CAÇAMBA: 0,8 M³ / POTÊNCIA: 111 HP), LARGURA DE 1,5 A 2,5 M, PROFUNDIDADE ATÉ 1,5 M, COM SOLO DE 1ª CATEGORIA EM LOCAIS COM BAIXO NÍVEL DE INTERFERÊNCIA. AF_04/2016 | G52: M3 | H52: 4.83 | I52: 0,7 x 0,5 = 0,35 m² (área transversal) x 13,8 (comprimento da rede tubular) = 4,83 M3
B53: 5.2 | C53: BOCAS DE LOBO
B54: 5.2.1 | C54: SICRO - JUL/21 | D54: 2003453 | E54: - | F54: DISSIPADOR DE ENERGIA - DEB 03 - AREIA, BRITA E PEDRA DE MÃO COMERCIAIS | G54: U | H54: 2 | I54: 2 unidades
B55: 5.2.2 | C55: SETOP - OUT/21 | D55: ED-48549 | E55: DRE-BOC-005 | F55: BOCA DE LOBO SIMPLES (TIPO A - FERRO FUNDIDO), QUADRO, GRELHA E CANTONEIRA, INCLUSIVE ESCAVAÇÃO, REATERRO E BOTA-FORA | G55: U | H55: 4 | I55: 4 unidades
B57: 6. | C57: SINALIZAÇÃO VIÁRIA
B58: 6.1 | C58: SINALIZAÇÃO HORIZONTAL
B59: 6.1.1 | C59: SETOP - OUT/21 | D59: RO-41237 | E59: OBR-VIA-245 | F59: LINHAS DE RESINA ACRILICA DE 0,6MM DE ESPESSURA E LARGURA = 0,10M (EXECUÇÃO, INCLUINDO PRÉ-MARCAÇÃO, FORNECIMENTO E TRANSPORTE DE TODOS OS MATERIAIS) | G59: M | H59: 1059.84 | I59: Extensão da via x 3 eixos = 1059,84 M
B60: 6.2 | C60: SINALIZAÇÃO VERTICAL | D60: 0 | E60: 0 | F60: 0 | G60: 0
B61: 6.2.1 | C61: SETOP - OUT/21 | D61: RO-41841 | E61: - | F61: PLACA DE AÇO CARBONO COM PELÍCULA REFLETIVA GRAU TÉCNICO TIPO I DA ABNT - PLACA CIRCULAR (EXECUÇÃO, INCLUINDO FORNECIMENTO E TRANSPORTE DE TODOS OS MATERIAIS, INCLUSIVE POSTE DE SUSTENTAÇÃO) | G61: M2 | H61: 0.39 | I61: Quantidade de placas circulares: 2 x 0,196 (área da placa) = 0,39 M2
B62: 6.2.2 | C62: SETOP - OUT/21 | D62: RO-41844 | E62: - | F62: PLACA DE AÇO CARBONO COM PELÍCULA REFLETIVA GRAU TÉCNICO TIPO I DA ABNT - PLACA QUADRADA (EXECUÇÃO, INCLUINDO FORNECIMENTO E TRANSPORTE DE TODOS OS MATERIAIS, INCLUSIVE POSTE DE SUSTENTAÇÃO) | G62: M2 | H62: 0.41 | I62: Quantidade de placas quadradas: 2 x 0,203 (área da placa) = 0,41 M2
B63: 6.2.3 | C63: COMPOSIÇÃO | D63: COMP-SIN-001 | E63: - | F63: EXECUÇÃO DE BASE DE CONCRETO SIMPLES PARA FIXAÇÃO DAS HASTES DE SINALIZAÇÃO | G63: U | H63: 2 | I63: Total de postes: 0 (placas simples) + 2 (placas duplas) = 2 U
B65: OBSERVAÇÃO: TODOS OS VOLUMES DE MATERIAIS (SUB BASE, BASE, CBUQ, SARJETA, CORTE E ATERRO) FORAM CALCULADOS PELO MÉTODO DAS SEÇÕES, CONFORME APRESENTADO EM PROJETO. FÓRMULA: V (m³) = d x [Si + S(i+1)]/2 ONDE "d" É A DISTÂNCIA ENTRE AS SEÇÕES, "S" É A ÁREA DO MATERIAL EM CORTE E "i" REFERE-SE A ESTACA DE CÁLCULO

Sheet COMPOSIÇÕES
B1: PLANILHA ORÇAMENTÁRIA - COMPOSIÇÕES
B2: PAVIMENTAÇÃO EM BLOCO SEXTAVADO (TRECHO COLUNA) - FASE 2
B3: SÃO JOÃO DA MATA - MINAS GERAIS
B4: SUB-ITEM | C4: REFERÊNCIA | D4: CÓDIGO | F4: SERVIÇO | G4: UNID | H4: COEF. | I4: PREÇO UNITÁRIO | J4: PREÇO SUBITEM
B5: COMPOSIÇÕES
B7: COMP-OBR-001 | C7: SINAPI - NOV/21 | D7: 4417 | E7: - | F7: SARRAFO NAO APARELHADO *2,5 X 7* CM, EM MACARANDUBA, ANGELIM OU EQUIVALENTE DA REGIAO - BRUTA | G7: M | H7: 1
B8: COMP-OBR-001 | C8: SINAPI - NOV/21 | D8: 4491 | E8: - | F8: PONTALETE *7,5 X 7,5* CM EM PINUS, MISTA OU EQUIVALENTE DA REGIAO - BRUTA | G8: M | H8: 4
B9: COMP-OBR-001 | C9: SINAPI - NOV/21 | D9: 4813 | E9: - | F9: PLACA DE OBRA (PARA CONSTRUCAO CIVIL) EM CHAPA GALVANIZADA *N. 22*, ADESIVADA, DE *2,4 X 1,2* M (SEM POSTES PARA FIXACAO) | G9: M2 | H9: 1
B10: COMP-OBR-001 | C10: SINAPI - NOV/21 | D10: 5075 | E10: - | F10: PREGO DE ACO POLIDO COM CABECA 18 X 30 (2 3/4 X 10) | G10: KG | H10: 0.11
B11: COMP-OBR-001 | C11: SINAPI - NOV/21 | D11: 88262 | E11: - | F11: CARPINTEIRO DE FORMAS COM ENCARGOS COMPLEMENTARES | G11: H | H11: 1
B12: COMP-OBR-001 | C12: SINAPI - NOV/21 | D12: 88316 | E12: - | F12: SERVENTE COM ENCARGOS COMPLEMENTARES | G12: H | H12: 2
B13: COMP-OBR-001 | C13: SINAPI - NOV/21 | D13: 94962 | E13: - | F13: CONCRETO MAGRO PARA LASTRO, TRAÇO 1:4,5:4,5 (EM MASSA SECA DE CIMENTO/ AREIA MÉDIA/ BRITA 1) - PREPARO MECÂNICO COM BETONEIRA 400 L. AF_05/2021 | G13: M3 | H13: 0.01
B14: COMP-OBR-001 | C14: - | D14: - | E14: - | F14: FORNECIMENTO E INSTALAÇÃO DE PLACA DE OBRA PARA CONSTRUÇÃO CIVIL EM CHAPA DE AÇO GALVANIZADA 2,00 X 1,125 M | G14: M2 | H14: -
B16: COMP-DRE-001 | C16: SINAPI - NOV/21 | D16: 370 | E16: - | F16: AREIA MEDIA - POSTO JAZIDA/FORNECEDOR (RETIRADO NA JAZIDA, SEM TRANSPORTE) | G16: M3 | H16: 0.033
B17: COMP-DRE-001 | C17: SINAPI - NOV/21 | D17: 4517 | E17: - | F17: SARRAFO *2,5 X 7,5* CM EM PINUS, MISTA OU EQUIVALENTE DA REGIAO - BRUTA | G17: M | H17: 0.3
B18: COMP-DRE-001 | C18: SINAPI - NOV/21 | D18: 6189 | E18: - | F18: TABUA NAO APARELHADA *2,5 X 30* CM, EM MACARANDUBA, ANGELIM OU EQUIVALENTE DA REGIAO - BRUTA | G18: M | H18: 0.5
B19: COMP-DRE-001 | C19: SINAPI - NOV/21 | D19: 94971 | E19: - | F19: CONCRETO FCK = 25MPA, TRAÇO 1:2,3:2,7 (EM MASSA SECA DE CIMENTO/ AREIA MÉDIA/ BRITA 1) - PREPARO MECÂNICO COM BETONEIRA 600 L. AF_05/2021 | G19: M3 | H19: 0.045
B20: COMP-DRE-001 | C20: SINAPI - NOV/21 | D20: 10917 | E20: - | F20: TELA DE ACO SOLDADA NERVURADA, CA-60, Q-61, (0,97 KG/M2), DIAMETRO DO FIO = 3,4 MM, LARGURA = 2,45 M, ESPACAMENTO DA MALHA = 15 X 15 CM | G20: M2 | H20: 0.39
B21: COMP-DRE-001 | C21: SINAPI - NOV/21 | D21: 88245 | E21: - | F21: ARMADOR COM ENCARGOS COMPLEMENTARES | G21: H | H21: 0.0158886
B22: COMP-DRE-001 | C22: SINAPI - NOV/21 | D22: 88309 | E22: - | F22: PEDREIRO COM ENCARGOS COMPLEMENTARES | G22: H | H22: 0.832
B23: COMP-DRE-001 | C23: SINAPI - NOV/21 | D23: 88316 | E23: - | F23: SERVENTE COM ENCARGOS COMPLEMENTARES | G23: H | H23: 0.832
B24: COMP-DRE-001 | C24: - | D24: - | E24: - | F24: EXECUÇÃO DE SARJETÃO DE CONCRETO ARMADO MOLDADO IN LOCO, 45 CM BASE x 10CM ALTURA | G24: M | H24: 1
B25: COMPOSIÇÃO DRE-001 BASEADA NO ITEM 94293 DA SINAPI (COEFICIENTE DE VOLUME DE CONCRETO FOI CALCULADO PELA SEÇÃO DEFINIDA EM PROJETO), ADICIONADO ARMADOR (COEFICIENTE CONSIDERADO DE 0,042H POR Kg, SENDO NECESSÁRIO 1,28 kg POR M²) E TELA DE AÇO SOLDADA (1,32M² E 1,28 Kg POR METRO DE SARJETÃO)
B28: COMP-SIN-001 | C28: SINAPI - NOV/21 | D28: 93358 | E28: - | F28: ESCAVAÇÃO MANUAL DE VALA COM PROFUNDIDADE MENOR OU IGUAL A 1,30 M. AF_02/2021 | G28: M3 | H28: 0.096
B29: COMP-SIN-001 | C29: SINAPI - NOV/21 | D29: 94975 | E29: - | F29: CONCRETO FCK = 15MPA, TRAÇO 1:3,4:3,5 (EM MASSA SECA DE CIMENTO/ AREIA MÉDIA/ BRITA 1) - PREPARO MANUAL. AF_05/2021 | G29: M3 | H29: 0.096
B30: COMP-SIN-001 | C30: SINAPI - NOV/21 | D30: 88309 | E30: - | F30: PEDREIRO COM ENCARGOS COMPLEMENTARES | G30: H | H30: 0.29
B31: COMP-SIN-001 | C31: SINAPI - NOV/21 | D31: 88316 | E31: - | F31: SERVENTE COM ENCARGOS COMPLEMENTARES | G31: H | H31: 0.54
B32: COMP-SIN-001 | C32: - | D32: - | E32: - | F32: EXECUÇÃO DE BASE DE CONCRETO SIMPLES PARA FIXAÇÃO DAS HASTES DE SINALIZAÇÃO | G32: U | H32: 1
B34: COMP-RFA-001 | C34: SINAPI - NOV/21 | D34: 97121 | E34: - | F34: ASSENTAMENTO DE TUBO DE PVC PBA PARA REDE DE ÁGUA, DN 50 MM, JUNTA ELÁSTICA INTEGRADA, INSTALADO EM LOCAL COM NÍVEL ALTO DE INTERFERÊNCIAS (NÃO INCLUI FORNECIMENTO). AF_11/2017 | G34: M | H34: 352.12
B35: COMP-RFA-001 | C35: SINAPI - NOV/21 | D35: 1206 | F35: CAP, PVC PBA, JE, DN 50 / DE 60 MM, PARA REDE DE AGUA (NBR 10351) | G35: UN | H35: 1
B36: COMP-RFA-001 | C36: SINAPI - NOV/21 | D36: 1835 | F36: CURVA PVC PBA, JE, PB, 22 GRAUS, DN 50 / DE 60 MM, PARA REDE AGUA (NBR 10351) | G36: UN | H36: 9
B37: COMP-RFA-001 | C37: SINAPI - NOV/21 | D37: 36375 | E37: - | F37: TUBO PVC PBA JEI, CLASSE 15, DN 50 MM, PARA REDE DE AGUA (NBR 5647) | G37: M | H37: 352.12
B38: COMP-RFA-001 | C38: - | D38: - | E38: - | F38: INSTALAÇÃO DE TUBULAÇÃO DE ABASTECIMENTO DE ÁGUA POTÁVEL | G38: U | H38: 1
